[Event "*** SCC Grand Prix: Titled Tuesday Blitz"]
[Site "Chess.com"]
[Date "2020.06.23"]
[Round "5"]
[White "Maksimus1998"]
[Black "RobertoJBM"]
[Result "0-1"]
[WhiteElo "2475"]
[BlackElo "2664"]
[TimeControl "180+1"]
[EndTime "10:58:46 PDT"]
[Termination "RobertoJBM won by resignation"]

1. e4 {[%clk 0:03:00.9]} 1... c6 {[%clk 0:02:59.5]} 2. d4 {[%clk 0:03:00.7]}
2... d5 {[%clk 0:03:00.4]} 3. exd5 {[%clk 0:03:01.6]} 3... cxd5 {[%clk
0:03:00.2]} 4. Bd3 {[%clk 0:03:01.1]} 4... Nc6 {[%clk 0:02:59.8]} 5. c3 {[%clk
0:03:01.5]} 5... Nf6 {[%clk 0:03:00.4]} 6. Bf4 {[%clk 0:03:00.1]} 6... g6 {[%clk
0:03:00.3]} 7. Nd2 {[%clk 0:02:53.5]} 7... Nh5 {[%clk 0:03:00.1]} 8. Be3 {[%clk
0:02:51.1]} 8... Qc7 {[%clk 0:03:00.2]} 9. Ne2 {[%clk 0:02:38.3]} 9... Bg7
{[%clk 0:02:59]} 10. h3 {[%clk 0:02:31.1]} 10... O-O {[%clk 0:02:58.1]} 11. Nf3
{[%clk 0:02:30.9]} 11... Bd7 {[%clk 0:02:53.7]} 12. O-O {[%clk 0:02:30.1]} 12...
Rae8 {[%clk 0:02:53]} 13. Re1 {[%clk 0:02:28.8]} 13... e6 {[%clk 0:02:44.6]} 14.
Qd2 {[%clk 0:02:27.6]} 14... f6 {[%clk 0:02:40.5]} 15. Rad1 {[%clk 0:02:16.2]}
15... e5 {[%clk 0:02:29.2]} 16. dxe5 {[%clk 0:02:16.4]} 16... fxe5 {[%clk
0:02:28.6]} 17. Bb5 {[%clk 0:02:16.4]} 17... a6 {[%clk 0:02:20.5]} 18. Ba4
{[%clk 0:02:05.8]} 18... Nf6 {[%clk 0:01:54.1]} 19. Ng3 {[%clk 0:01:50.8]} 19...
Kh8 {[%clk 0:01:53.9]} 20. Bc5 {[%clk 0:01:41.3]} 20... Rg8 {[%clk 0:01:53.9]}
21. Ng5 {[%clk 0:01:30]} 21... h6 {[%clk 0:01:34.3]} 22. Bd6 {[%clk 0:01:19.1]}
22... Qa5 {[%clk 0:01:34.1]} 23. Bxc6 {[%clk 0:01:12.1]} 23... Bxc6 {[%clk
0:01:27.1]} 24. Nf7+ {[%clk 0:01:12.1]} 24... Kh7 {[%clk 0:01:27.5]} 25. Nxe5
{[%clk 0:01:08.5]} 25... Qxa2 {[%clk 0:01:12.2]} 26. Qc2 {[%clk 0:00:57.4]}
26... Ne4 {[%clk 0:01:12.4]} 27. Ra1 {[%clk 0:00:46.8]} 27... Qxa1 {[%clk
0:01:12.3]} 28. Rxa1 {[%clk 0:00:45.7]} 28... Bxe5 {[%clk 0:01:12.7]} 29. Nxe4
{[%clk 0:00:41.3]} 29... dxe4 {[%clk 0:01:11.5]} 30. Rd1 {[%clk 0:00:38.9]}
30... Rg7 {[%clk 0:01:08.1]} 31. Bxe5 {[%clk 0:00:31.3]} 31... Rxe5 {[%clk
0:01:09]} 32. Rd8 {[%clk 0:00:23.3]} 32... Rf5 {[%clk 0:01:05.3]} 33. Qd2 {[%clk
0:00:20.4]} 33... Rgf7 {[%clk 0:01:02.6]} 34. Qd4 {[%clk 0:00:20.2]} 34... R5f6
{[%clk 0:00:56.9]} 35. h4 {[%clk 0:00:17]} 35... h5 {[%clk 0:00:51]} 36. Qe5
{[%clk 0:00:16.3]} 36... Kh6 {[%clk 0:00:43.3]} 37. Qg5+ {[%clk 0:00:15.8]}
37... Kg7 {[%clk 0:00:43]} 38. Qe5 {[%clk 0:00:15.8]} 38... Kh6 {[%clk
0:00:42.8]} 39. Qb8 {[%clk 0:00:11.9]} 39... Rh7 {[%clk 0:00:28]} 40. Rh8 {[%clk
0:00:11.1]} 40... Rf7 {[%clk 0:00:26.6]} 41. Rxh7+ {[%clk 0:00:10.3]} 41... Kxh7
{[%clk 0:00:27.5]} 42. Qe5 {[%clk 0:00:09.8]} 42... Rd7 {[%clk 0:00:27.1]} 43.
Kh2 {[%clk 0:00:09.6]} 43... a5 {[%clk 0:00:26]} 44. Kg3 {[%clk 0:00:09.4]}
44... a4 {[%clk 0:00:22.8]} 45. Kf4 {[%clk 0:00:09.5]} 45... Rf7+ {[%clk
0:00:22.9]} 46. Ke3 {[%clk 0:00:09.9]} 46... Rd7 {[%clk 0:00:22.7]} 47. Qb8
{[%clk 0:00:08.6]} 47... Kg7 {[%clk 0:00:22.7]} 48. Qa7 {[%clk 0:00:03.7]} 48...
Kf7 {[%clk 0:00:22.1]} 49. Qc5 {[%clk 0:00:03]} 49... Rd5 {[%clk 0:00:20.5]} 50.
Qc4 {[%clk 0:00:02.9]} 50... Kf6 {[%clk 0:00:20.9]} 51. Qb4 {[%clk 0:00:02.2]}
51... Rd3+ {[%clk 0:00:20.4]} 52. Ke2 {[%clk 0:00:02.7]} 52... Rd7 {[%clk
0:00:20.9]} 53. Qf8+ {[%clk 0:00:02.9]} 53... Rf7 {[%clk 0:00:20.5]} 54. Qd8+
{[%clk 0:00:03]} 54... Kg7 {[%clk 0:00:20.6]} 55. Qd4+ {[%clk 0:00:03.6]} 55...
Kh7 {[%clk 0:00:20.8]} 56. Qd6 {[%clk 0:00:03.5]} 56... Rd7 {[%clk 0:00:21]} 57.
Qf6 {[%clk 0:00:03.7]} 57... Rg7 {[%clk 0:00:21.2]} 58. Qg5 {[%clk 0:00:02.8]}
58... Rf7 {[%clk 0:00:21.1]} 59. Ke3 {[%clk 0:00:03.3]} 59... Kg7 {[%clk
0:00:21.9]} 60. g4 {[%clk 0:00:03.6]} 60... hxg4 {[%clk 0:00:21.2]} 61. Qxg4
{[%clk 0:00:04.5]} 61... Rf3+ {[%clk 0:00:21.4]} 62. Kd4 {[%clk 0:00:04.9]}
62... Rf5 {[%clk 0:00:22]} 63. h5 {[%clk 0:00:04.9]} 63... Rxh5 {[%clk
0:00:21.7]} 64. Qg3 {[%clk 0:00:05.3]} 64... Rd5+ {[%clk 0:00:21.6]} 65. Ke3
{[%clk 0:00:05.6]} 65... Rd7 {[%clk 0:00:22.1]} 66. Ke2 {[%clk 0:00:05.8]} 66...
Bb5+ {[%clk 0:00:22.1]} 67. Ke1 {[%clk 0:00:06.3]} 67... Bc6 {[%clk 0:00:21.7]}
68. Qe5+ {[%clk 0:00:06.4]} 68... Kf7 {[%clk 0:00:22.6]} 69. Qf4+ {[%clk
0:00:06.5]} 69... Ke6 {[%clk 0:00:23.3]} 70. Qg4+ {[%clk 0:00:06.1]} 70... Kd5
{[%clk 0:00:23]} 71. Qxg6 {[%clk 0:00:05.4]} 71... Kc4 {[%clk 0:00:23.9]} 72.
Qg8+ {[%clk 0:00:05.1]} 72... Kd3 {[%clk 0:00:23.7]} 73. Qe6 {[%clk 0:00:04.1]}
73... Kc2 {[%clk 0:00:23.4]} 74. Qa2 {[%clk 0:00:03.3]} 74... Kd3 {[%clk
0:00:16.3]} 75. Qb1+ {[%clk 0:00:03.2]} 75... Kc4 {[%clk 0:00:16.7]} 76. Qa2+
{[%clk 0:00:03.4]} 76... Kb5 {[%clk 0:00:15.3]} 77. Ke2 {[%clk 0:00:03.2]} 77...
Rd3 {[%clk 0:00:14.7]} 78. c4+ {[%clk 0:00:03]} 78... Kb4 {[%clk 0:00:14.7]} 79.
c5 {[%clk 0:00:03]} 79... Bd5 {[%clk 0:00:14.1]} 80. Qb1 {[%clk 0:00:03.2]}
80... Bc4 {[%clk 0:00:14.3]} 81. Ke1 {[%clk 0:00:03.1]} 81... Bb3 {[%clk
0:00:13.1]} 82. Ke2 {[%clk 0:00:02.5]} 82... Bd1+ {[%clk 0:00:12.6]} 83. Ke1
{[%clk 0:00:01.9]} 83... Bf3 {[%clk 0:00:12.3]} 84. Kf1 {[%clk 0:00:02.5]} 84...
Rd1+ {[%clk 0:00:12.3]} 0-1

[Event "*** SCC Grand Prix: Titled Tuesday Blitz"]
[Site "Chess.com"]
[Date "2020.06.23"]
[Round "5"]
[White "Tooweak2slow03"]
[Black "Indianlad"]
[Result "1-0"]
[WhiteElo "2666"]
[BlackElo "2948"]
[TimeControl "180+1"]
[EndTime "10:58:47 PDT"]
[Termination "Tooweak2slow03 won by checkmate"]

1. e4 {[%clk 0:03:00.9]} 1... c5 {[%clk 0:02:53.1]} 2. Nf3 {[%clk 0:03:01]} 2...
d6 {[%clk 0:02:52.4]} 3. d4 {[%clk 0:03:01.1]} 3... cxd4 {[%clk 0:02:53.3]} 4.
Nxd4 {[%clk 0:03:02]} 4... Nf6 {[%clk 0:02:53.9]} 5. Nc3 {[%clk 0:03:02.6]} 5...
a6 {[%clk 0:02:54.8]} 6. a3 {[%clk 0:03:02.7]} 6... Nbd7 {[%clk 0:02:46.6]} 7.
Be2 {[%clk 0:02:53.6]} 7... Nc5 {[%clk 0:02:44.1]} 8. Bf3 {[%clk 0:02:50.8]}
8... e5 {[%clk 0:02:44.3]} 9. Nde2 {[%clk 0:02:49.7]} 9... Ne6 {[%clk
0:02:38.9]} 10. Be3 {[%clk 0:02:46.8]} 10... Be7 {[%clk 0:02:39.1]} 11. O-O
{[%clk 0:02:43.3]} 11... O-O {[%clk 0:02:33.3]} 12. Ng3 {[%clk 0:02:43.2]} 12...
g6 {[%clk 0:02:32.1]} 13. Qd2 {[%clk 0:02:39.7]} 13... b5 {[%clk 0:02:30.2]} 14.
Bh6 {[%clk 0:02:36.4]} 14... Re8 {[%clk 0:02:30.3]} 15. Nd5 {[%clk 0:02:33.8]}
15... Nxd5 {[%clk 0:02:30.1]} 16. Qxd5 {[%clk 0:02:34.7]} 16... Rb8 {[%clk
0:02:28.5]} 17. Rad1 {[%clk 0:02:31.3]} 17... Bb7 {[%clk 0:02:28.8]} 18. Qd2
{[%clk 0:02:31]} 18... Qc7 {[%clk 0:02:11.4]} 19. c3 {[%clk 0:02:30.1]} 19...
Rbd8 {[%clk 0:02:07.7]} 20. Rfe1 {[%clk 0:02:27.8]} 20... Bf6 {[%clk 0:02:07]}
21. Nf1 {[%clk 0:02:26.3]} 21... Qe7 {[%clk 0:02:04]} 22. Ne3 {[%clk 0:02:23.6]}
22... Bg5 {[%clk 0:02:04.6]} 23. Bxg5 {[%clk 0:02:22.8]} 23... Nxg5 {[%clk
0:02:05.5]} 24. Nd5 {[%clk 0:02:19]} 24... Bxd5 {[%clk 0:02:05.3]} 25. Qxd5
{[%clk 0:02:18]} 25... Nxf3+ {[%clk 0:02:05.7]} 26. gxf3 {[%clk 0:02:18.9]}
26... Rf8 {[%clk 0:02:04.8]} 27. Rd3 {[%clk 0:02:14.3]} 27... Kh8 {[%clk
0:02:05.1]} 28. Red1 {[%clk 0:02:14.2]} 28... f5 {[%clk 0:02:05.7]} 29. Qc6
{[%clk 0:01:40.2]} 29... fxe4 {[%clk 0:02:03.4]} 30. fxe4 {[%clk 0:01:41.1]}
30... Rf6 {[%clk 0:01:58.8]} 31. Qxa6 {[%clk 0:01:39.2]} 31... Rdf8 {[%clk
0:01:59.4]} 32. R1d2 {[%clk 0:01:37.1]} 32... d5 {[%clk 0:01:50.5]} 33. Qxb5
{[%clk 0:01:32.6]} 33... dxe4 {[%clk 0:01:48.2]} 34. Re3 {[%clk 0:01:33]} 34...
Rf4 {[%clk 0:01:46.8]} 35. Rde2 {[%clk 0:01:30.3]} 35... Qg5+ {[%clk 0:01:45.5]}
36. Rg3 {[%clk 0:01:28.8]} 36... Qh5 {[%clk 0:01:42.8]} 37. Rge3 {[%clk
0:01:24.9]} 37... R8f5 {[%clk 0:01:36.6]} 38. Rg3 {[%clk 0:01:21.3]} 38... Kg7
{[%clk 0:01:28.8]} 39. Qd7+ {[%clk 0:01:17.6]} 39... Rf7 {[%clk 0:01:26.8]} 40.
Qd2 {[%clk 0:01:14.2]} 40... Qf5 {[%clk 0:01:21.8]} 41. a4 {[%clk 0:01:12.1]}
41... Rd7 {[%clk 0:01:22]} 42. Qe1 {[%clk 0:01:10.4]} 42... Rd3 {[%clk
0:01:15.2]} 43. Ree3 {[%clk 0:01:07.9]} 43... h5 {[%clk 0:01:11.2]} 44. Qe2
{[%clk 0:01:05.6]} 44... h4 {[%clk 0:01:10.8]} 45. Rxd3 {[%clk 0:01:04.2]} 45...
exd3 {[%clk 0:01:10.1]} 46. Rxd3 {[%clk 0:01:04.3]} 46... Re4 {[%clk 0:01:00.5]}
47. Qf3 {[%clk 0:01:02]} 47... Rf4 {[%clk 0:00:33.7]} 48. Qe2 {[%clk 0:01:00.5]}
48... e4 {[%clk 0:00:33.4]} 49. Rd4 {[%clk 0:00:54.7]} 49... Rg4+ {[%clk
0:00:33]} 50. Kf1 {[%clk 0:00:52.3]} 50... Qg5 {[%clk 0:00:32.7]} 51. Qe3 {[%clk
0:00:52.7]} 51... Rg1+ {[%clk 0:00:31.8]} 52. Ke2 {[%clk 0:00:53]} 52... Qg4+
{[%clk 0:00:32.4]} 53. f3 {[%clk 0:00:49.2]} 53... Qg2+ {[%clk 0:00:14.8]} 54.
Qf2 {[%clk 0:00:48.3]} 54... exf3+ {[%clk 0:00:15.6]} 55. Ke3 {[%clk 0:00:45.8]}
55... Qg5+ {[%clk 0:00:15.9]} 56. Kxf3 {[%clk 0:00:42.8]} 56... Qf5+ {[%clk
0:00:16.4]} 57. Ke2 {[%clk 0:00:41.8]} 57... Qc2+ {[%clk 0:00:16.4]} 58. Kf3
{[%clk 0:00:40]} 58... Qf5+ {[%clk 0:00:16.4]} 59. Ke2 {[%clk 0:00:40.4]} 59...
Qe5+ {[%clk 0:00:11.2]} 60. Kd2 {[%clk 0:00:36.7]} 60... Qg5+ {[%clk 0:00:11.4]}
61. Kd3 {[%clk 0:00:32.1]} 61... Rd1+ {[%clk 0:00:03.4]} 62. Ke2 {[%clk
0:00:29.4]} 62... Rb1 {[%clk 0:00:02]} 63. Kf3 {[%clk 0:00:25.7]} 63... Qf5+
{[%clk 0:00:01.8]} 64. Kg2 {[%clk 0:00:24.9]} 64... h3+ {[%clk 0:00:02]} 65. Kg3
{[%clk 0:00:22.9]} 65... Qe5+ {[%clk 0:00:02.7]} 66. Kxh3 {[%clk 0:00:16.1]}
66... Qh5+ {[%clk 0:00:02.9]} 67. Kg2 {[%clk 0:00:13.5]} 67... Qg5+ {[%clk
0:00:03.3]} 68. Qg3 {[%clk 0:00:11.6]} 68... Rxb2+ {[%clk 0:00:03]} 69. Kf3
{[%clk 0:00:11]} 69... Qf5+ {[%clk 0:00:03.3]} 70. Ke3 {[%clk 0:00:09.9]} 70...
Qe6+ {[%clk 0:00:03.7]} 71. Re4 {[%clk 0:00:08]} 71... Qb6+ {[%clk 0:00:04.3]}
72. Rd4 {[%clk 0:00:06]} 72... Rb3 {[%clk 0:00:03.7]} 73. Qe5+ {[%clk
0:00:04.8]} 73... Kh7 {[%clk 0:00:04.3]} 74. Kd3 {[%clk 0:00:04]} 74... Qa6+
{[%clk 0:00:04]} 75. Kc2 {[%clk 0:00:02.8]} 75... Rb7 {[%clk 0:00:03.5]} 76.
Rh4+ {[%clk 0:00:02.7]} 76... Kg8 {[%clk 0:00:04]} 77. Rh8+ {[%clk 0:00:03.3]}
77... Kf7 {[%clk 0:00:04.9]} 78. Rh7+ {[%clk 0:00:04.1]} 78... Kg8 {[%clk
0:00:05.4]} 79. Rh8+ {[%clk 0:00:04.4]} 79... Kf7 {[%clk 0:00:05.5]} 80. Rh7+
{[%clk 0:00:05.3]} 80... Kg8 {[%clk 0:00:06.2]} 81. Qh8# {[%clk 0:00:06.2]} 1-0

[Event "*** SCC Grand Prix: Titled Tuesday Blitz"]
[Site "Chess.com"]
[Date "2020.06.23"]
[Round "6"]
[White "Cubitas"]
[Black "Ekka83"]
[Result "1-0"]
[WhiteElo "2546"]
[BlackElo "2346"]
[TimeControl "180+1"]
[EndTime "11:01:21 PDT"]
[Termination "Cubitas won by resignation"]

1. e4 {[%clk 0:03:00.9]} 1... d5 {[%clk 0:02:54.3]} 2. exd5 {[%clk 0:03:00.7]}
2... Qxd5 {[%clk 0:02:55.1]} 3. Nf3 {[%clk 0:03:00.6]} 3... Nf6 {[%clk
0:02:54.6]} 4. Be2 {[%clk 0:02:59.8]} 4... c6 {[%clk 0:02:54.3]} 5. O-O {[%clk
0:03:00.2]} 5... Bf5 {[%clk 0:02:53.8]} 6. d4 {[%clk 0:02:58.6]} 6... e6 {[%clk
0:02:53.5]} 7. c4 {[%clk 0:02:58.7]} 7... Qd8 {[%clk 0:02:53.3]} 8. Nc3 {[%clk
0:02:59.2]} 8... Be7 {[%clk 0:02:53.2]} 9. Re1 {[%clk 0:02:30.8]} 9... O-O
{[%clk 0:02:52.3]} 10. Nh4 {[%clk 0:02:30]} 10... Bg6 {[%clk 0:02:51.8]} 11.
Nxg6 {[%clk 0:02:27.8]} 11... hxg6 {[%clk 0:02:52.7]} 12. Bf3 {[%clk 0:02:28.4]}
12... Nbd7 {[%clk 0:02:47.9]} 13. d5 {[%clk 0:02:26]} 13... cxd5 {[%clk
0:02:47.5]} 14. cxd5 {[%clk 0:02:26.9]} 14... exd5 {[%clk 0:02:47.5]} 15. Nxd5
{[%clk 0:02:27.8]} 15... Nxd5 {[%clk 0:02:45.4]} 16. Qxd5 {[%clk 0:02:28.7]}
16... b6 {[%clk 0:02:38.9]} 17. Qxa8 {[%clk 0:02:28]} 17... Qxa8 {[%clk
0:02:25.4]} 18. Bxa8 {[%clk 0:02:28.9]} 18... Bb4 {[%clk 0:02:19.9]} 19. Rd1
{[%clk 0:02:29]} 19... Rxa8 {[%clk 0:02:17.2]} 20. Rxd7 {[%clk 0:02:28.3]} 20...
Re8 {[%clk 0:02:17.8]} 21. Bd2 {[%clk 0:02:26.5]} 1-0

[Event "*** SCC Grand Prix: Titled Tuesday Blitz"]
[Site "Chess.com"]
[Date "2020.06.23"]
[Round "6"]
[White "Man-Chuk"]
[Black "JakubPulpan"]
[Result "1-0"]
[WhiteElo "2851"]
[BlackElo "2683"]
[TimeControl "180+1"]
[EndTime "11:01:35 PDT"]
[Termination "Man-Chuk won by resignation"]

1. c4 {[%clk 0:03:00.9]} 1... e6 {[%clk 0:02:56.8]} 2. Nc3 {[%clk 0:03:00.8]}
2... d5 {[%clk 0:02:56.7]} 3. d4 {[%clk 0:03:01]} 3... Nf6 {[%clk 0:02:56.3]} 4.
cxd5 {[%clk 0:03:01.3]} 4... Nxd5 {[%clk 0:02:57.2]} 5. e4 {[%clk 0:03:00]} 5...
Nxc3 {[%clk 0:02:51.9]} 6. bxc3 {[%clk 0:03:00.9]} 6... c5 {[%clk 0:02:52.8]} 7.
Rb1 {[%clk 0:03:01.1]} 7... Be7 {[%clk 0:02:52.4]} 8. Nf3 {[%clk 0:02:59.9]}
8... O-O {[%clk 0:02:48.3]} 9. Bd3 {[%clk 0:02:59.4]} 9... cxd4 {[%clk
0:02:43.7]} 10. cxd4 {[%clk 0:02:59.4]} 10... Nc6 {[%clk 0:02:44.6]} 11. Be3
{[%clk 0:02:36]} 11... Qa5+ {[%clk 0:02:39.1]} 12. Bd2 {[%clk 0:02:26.5]} 12...
Bb4 {[%clk 0:02:39]} 13. Bxb4 {[%clk 0:02:09]} 13... Nxb4 {[%clk 0:02:39.9]} 14.
O-O {[%clk 0:02:09.2]} 14... Nxd3 {[%clk 0:02:39.2]} 15. Qxd3 {[%clk 0:02:10.1]}
15... b6 {[%clk 0:02:10.8]} 16. Qd2 {[%clk 0:02:10.3]} 16... Bb7 {[%clk
0:02:08.3]} 17. Qxa5 {[%clk 0:02:09]} 1-0

[Event "*** SCC Grand Prix: Titled Tuesday Blitz"]
[Site "Chess.com"]
[Date "2020.06.23"]
[Round "6"]
[White "Bastiandash"]
[Black "PattyCastillo"]
[Result "1-0"]
[WhiteElo "2220"]
[BlackElo "1920"]
[TimeControl "180+1"]
[EndTime "11:01:37 PDT"]
[Termination "Bastiandash won by resignation"]

1. d4 {[%clk 0:02:59.8]} 1... d5 {[%clk 0:02:59.6]} 2. Nf3 {[%clk 0:03:00.7]}
2... Nf6 {[%clk 0:02:59.2]} 3. c3 {[%clk 0:03:01.3]} 3... c6 {[%clk 0:02:55.4]}
4. Bg5 {[%clk 0:02:58.4]} 4... e6 {[%clk 0:02:53.4]} 5. e3 {[%clk 0:02:58.4]}
5... Nbd7 {[%clk 0:02:53.1]} 6. Bd3 {[%clk 0:02:58.2]} 6... h6 {[%clk
0:02:53.3]} 7. Bh4 {[%clk 0:02:57.6]} 7... Be7 {[%clk 0:02:50.9]} 8. Nbd2 {[%clk
0:02:55.8]} 8... O-O {[%clk 0:02:50]} 9. O-O {[%clk 0:02:55.6]} 9... b6 {[%clk
0:02:48.6]} 10. Ne5 {[%clk 0:02:52.2]} 10... Bb7 {[%clk 0:02:47.6]} 11. f4
{[%clk 0:02:49.4]} 11... Rc8 {[%clk 0:02:44.4]} 12. Qf3 {[%clk 0:02:47.4]} 12...
c5 {[%clk 0:02:42.8]} 13. Rae1 {[%clk 0:02:41.9]} 13... cxd4 {[%clk 0:02:25.7]}
14. exd4 {[%clk 0:02:42.8]} 14... Re8 {[%clk 0:02:17.1]} 15. g4 {[%clk
0:02:38.1]} 15... Nf8 {[%clk 0:02:08.9]} 16. Re3 {[%clk 0:02:27.5]} 16... Ne4
{[%clk 0:02:06.7]} 17. Bxe7 {[%clk 0:02:16.9]} 17... Qxe7 {[%clk 0:02:07.6]} 18.
Nxe4 {[%clk 0:02:15.4]} 18... Qd8 {[%clk 0:02:08.5]} 19. Nd2 {[%clk 0:02:13.1]}
1-0

[Event "*** SCC Grand Prix: Titled Tuesday Blitz"]
[Site "Chess.com"]
[Date "2020.06.23"]
[Round "6"]
[White "dodorox"]
[Black "nekotyanof"]
[Result "1-0"]
[WhiteElo "2041"]
[BlackElo "2306"]
[TimeControl "180+1"]
[EndTime "11:02:33 PDT"]
[Termination "dodorox won by resignation"]

1. d4 {[%clk 0:03:00.9]} 1... Nf6 {[%clk 0:02:57.7]} 2. c4 {[%clk 0:03:00.8]}
2... g6 {[%clk 0:02:58.6]} 3. Nc3 {[%clk 0:03:00.8]} 3... d5 {[%clk 0:02:59.5]}
4. Bf4 {[%clk 0:02:59.5]} 4... Bg7 {[%clk 0:02:59.4]} 5. e3 {[%clk 0:02:59.2]}
5... c6 {[%clk 0:02:59.2]} 6. Nf3 {[%clk 0:02:56.6]} 6... Nbd7 {[%clk
0:02:59.2]} 7. cxd5 {[%clk 0:02:47.7]} 7... Nxd5 {[%clk 0:03:00.1]} 8. Nxd5
{[%clk 0:02:47.3]} 8... cxd5 {[%clk 0:03:00.7]} 9. Bd3 {[%clk 0:02:40.5]} 9...
O-O {[%clk 0:02:58.2]} 10. O-O {[%clk 0:02:40.5]} 10... b6 {[%clk 0:02:57.7]}
11. Rc1 {[%clk 0:02:36.6]} 11... a5 {[%clk 0:02:57.9]} 12. Qb3 {[%clk
0:02:24.3]} 12... Ba6 {[%clk 0:02:57.4]} 13. Bxa6 {[%clk 0:02:06.4]} 13... Rxa6
{[%clk 0:02:58.3]} 14. Qxd5 {[%clk 0:02:06]} 14... e6 {[%clk 0:02:56.1]} 15. Qb7
{[%clk 0:02:01.9]} 15... Ra8 {[%clk 0:02:55.9]} 16. Bd6 {[%clk 0:01:39.2]} 16...
Re8 {[%clk 0:02:54.9]} 17. Rc7 {[%clk 0:01:20.8]} 17... Nf6 {[%clk 0:02:53]} 18.
Rxf7 {[%clk 0:01:13]} 18... Bh6 {[%clk 0:02:44.2]} 19. Be5 {[%clk 0:01:04.2]}
19... Nh5 {[%clk 0:02:41.1]} 20. Rxh7 {[%clk 0:00:56.9]} 1-0

[Event "*** SCC Grand Prix: Titled Tuesday Blitz"]
[Site "Chess.com"]
[Date "2020.06.23"]
[Round "6"]
[White "hermionegrangermagic"]
[Black "KazakhFighter04"]
[Result "1-0"]
[WhiteElo "2543"]
[BlackElo "2739"]
[TimeControl "180+1"]
[EndTime "11:02:48 PDT"]
[Termination "hermionegrangermagic won by resignation"]

1. e4 {[%clk 0:03:00.9]} 1... e5 {[%clk 0:02:54.5]} 2. f4 {[%clk 0:02:59.6]}
2... d5 {[%clk 0:02:53.8]} 3. exd5 {[%clk 0:02:55.9]} 3... exf4 {[%clk
0:02:51.6]} 4. Nf3 {[%clk 0:02:55.1]} 4... Nf6 {[%clk 0:02:51.3]} 5. Nc3 {[%clk
0:02:50.8]} 5... Nxd5 {[%clk 0:02:47.6]} 6. Nxd5 {[%clk 0:02:50.2]} 6... Qxd5
{[%clk 0:02:48.5]} 7. d4 {[%clk 0:02:49.5]} 7... Bd6 {[%clk 0:02:44.5]} 8. c4
{[%clk 0:02:27.5]} 8... Qh5 {[%clk 0:02:42.2]} 9. Be2 {[%clk 0:02:25.7]} 9...
O-O {[%clk 0:02:35.6]} 10. O-O {[%clk 0:02:23.7]} 10... Rd8 {[%clk 0:02:11.5]}
11. Ne5 {[%clk 0:02:16.4]} 11... Qxe5 {[%clk 0:01:22.3]} 12. dxe5 {[%clk
0:02:15.1]} 12... Bc5+ {[%clk 0:01:22.7]} 13. Kh1 {[%clk 0:02:13.3]} 13... Rxd1
{[%clk 0:01:23.6]} 14. Rxd1 {[%clk 0:02:10.7]} 14... Be6 {[%clk 0:01:23]} 15.
Rd8+ {[%clk 0:02:07.7]} 15... Bf8 {[%clk 0:01:18.2]} 16. Bxf4 {[%clk 0:02:04.5]}
16... a5 {[%clk 0:01:15.3]} 17. Bg5 {[%clk 0:01:56.5]} 1-0

[Event "*** SCC Grand Prix: Titled Tuesday Blitz"]
[Site "Chess.com"]
[Date "2020.06.23"]
[Round "6"]
[White "JiiHart"]
[Black "Vandros57"]
[Result "1/2-1/2"]
[WhiteElo "2168"]
[BlackElo "2165"]
[TimeControl "180+1"]
[EndTime "11:02:49 PDT"]
[Termination "Game drawn by agreement"]

1. e4 {[%clk 0:03:00.9]} 1... c5 {[%clk 0:02:58.8]} 2. Nf3 {[%clk 0:02:59]} 2...
e6 {[%clk 0:02:57.9]} 3. d4 {[%clk 0:02:58.8]} 3... cxd4 {[%clk 0:02:57.4]} 4.
Nxd4 {[%clk 0:02:59.1]} 4... Nf6 {[%clk 0:02:56.9]} 5. Nc3 {[%clk 0:02:58.7]}
5... Nc6 {[%clk 0:02:55.9]} 6. g3 {[%clk 0:02:56.9]} 6... a6 {[%clk 0:02:45.2]}
7. Bg2 {[%clk 0:02:56.4]} 7... Qc7 {[%clk 0:02:40]} 8. O-O {[%clk 0:02:55.1]}
8... Nxd4 {[%clk 0:02:39.1]} 9. Qxd4 {[%clk 0:02:54.4]} 9... Bc5 {[%clk
0:02:38.5]} 10. Qd1 {[%clk 0:02:46.3]} 10... O-O {[%clk 0:02:35.1]} 11. Bf4
{[%clk 0:02:43.6]} 11... d6 {[%clk 0:02:30.6]} 12. Na4 {[%clk 0:02:33.7]} 12...
e5 {[%clk 0:02:26.6]} 13. Bg5 {[%clk 0:02:21.7]} 13... Qe7 {[%clk 0:02:02]} 14.
Nc3 {[%clk 0:01:42.1]} 14... Be6 {[%clk 0:01:58.6]} 15. Qf3 {[%clk 0:01:33.1]}
15... h6 {[%clk 0:01:55.7]} 16. Bxf6 {[%clk 0:01:30.1]} 16... Qxf6 {[%clk
0:01:55]} 17. Qxf6 {[%clk 0:01:29]} 17... gxf6 {[%clk 0:01:54]} 18. Nd5 {[%clk
0:01:17.2]} 18... Bxd5 {[%clk 0:01:50.2]} 19. exd5 {[%clk 0:01:17.5]} 1/2-1/2

[Event "*** SCC Grand Prix: Titled Tuesday Blitz"]
[Site "Chess.com"]
[Date "2020.06.23"]
[Round "6"]
[White "GigaQuparadze"]
[Black "Tooweak2slow03"]
[Result "1-0"]
[WhiteElo "2829"]
[BlackElo "2661"]
[TimeControl "180+1"]
[EndTime "11:02:57 PDT"]
[Termination "GigaQuparadze won by resignation"]

1. e4 {[%clk 0:03:00.9]} 1... e6 {[%clk 0:02:59.7]} 2. Qe2 {[%clk 0:02:54.4]}
2... d5 {[%clk 0:03:00.6]} 3. exd5 {[%clk 0:02:55.3]} 3... Qxd5 {[%clk
0:02:59.7]} 4. Nc3 {[%clk 0:02:55.8]} 4... Qd8 {[%clk 0:02:59.7]} 5. b3 {[%clk
0:02:55]} 5... b6 {[%clk 0:02:58.4]} 6. Bb2 {[%clk 0:02:54.9]} 6... Bb7 {[%clk
0:02:58.8]} 7. Nf3 {[%clk 0:02:55.2]} 7... Nf6 {[%clk 0:02:58.9]} 8. O-O-O
{[%clk 0:02:55.3]} 8... Nbd7 {[%clk 0:02:59.4]} 9. g4 {[%clk 0:02:52.2]} 9...
Nd5 {[%clk 0:02:56.9]} 10. g5 {[%clk 0:02:47.5]} 10... Bd6 {[%clk 0:02:49.3]}
11. Ne4 {[%clk 0:02:46.9]} 11... Rg8 {[%clk 0:02:43.1]} 12. Rg1 {[%clk
0:02:40.4]} 12... Qe7 {[%clk 0:02:39.2]} 13. Nxd6+ {[%clk 0:02:40.1]} 13... cxd6
{[%clk 0:02:36.5]} 14. Nd4 {[%clk 0:02:40.2]} 14... O-O-O {[%clk 0:02:32.8]} 15.
c4 {[%clk 0:02:39.5]} 15... Nc7 {[%clk 0:02:28.9]} 16. f4 {[%clk 0:02:33.5]}
16... g6 {[%clk 0:02:23.6]} 17. f5 {[%clk 0:02:26.8]} 17... e5 {[%clk 0:02:18]}
18. f6 {[%clk 0:02:23.3]} 18... Qe8 {[%clk 0:02:12.5]} 19. Nc2 {[%clk
0:02:21.9]} 19... Ne6 {[%clk 0:02:09.2]} 20. h4 {[%clk 0:02:19.9]} 20... Nf4
{[%clk 0:02:07.7]} 21. Qe3 {[%clk 0:02:19.1]} 21... Nc5 {[%clk 0:02:00.5]} 22.
d4 {[%clk 0:02:18.4]} 22... Nce6 {[%clk 0:01:43.9]} 23. dxe5 {[%clk 0:02:16.9]}
23... dxe5 {[%clk 0:01:44.1]} 24. Rxd8+ {[%clk 0:02:16.1]} 24... Qxd8 {[%clk
0:01:43]} 25. Bxe5 {[%clk 0:02:15.7]} 25... Nh5 {[%clk 0:01:37.8]} 26. Bh3
{[%clk 0:02:11.7]} 26... Qe8 {[%clk 0:01:35.1]} 27. Rd1 {[%clk 0:02:11.1]} 27...
Bc6 {[%clk 0:01:32]} 28. Nb4 {[%clk 0:02:07.6]} 28... Bd7 {[%clk 0:01:31.7]} 29.
Nd5 {[%clk 0:02:07.4]} 29... Rf8 {[%clk 0:01:28.5]} 30. Ne7+ {[%clk 0:02:02.8]}
1-0